[Event "Titled Tuesday Blitz October 18 Late 2022"]
[White "Kobla, Vishal"]
[Black "Vlassov, Nikolai"]
[WhiteFideId "2078457"]
[BlackFideId "4103360"]
[WhiteElo "1972"]
[BlackElo "2324"]
[Result "0-1"]
[Round "08"]
[TimeControl "180+1"]
[Date "2022.10.19"]
[WhiteClock "0:00:02"]
[BlackClock "0:01:18"]

1. e4 {[%clk 0:02:56]}  Nc6 {[%clk 0:02:54]} 2. Nf3 {[%clk 0:02:54]}  d5 {[%clk 0:02:54]} 3. exd5 {[%clk 0:02:54]}  Qxd5 {[%clk 0:02:53]} 4. d4 {[%clk 0:02:53]}  Bg4 {[%clk 0:02:53]} 5. Be2 {[%clk 0:02:53]}  O-O-O {[%clk 0:02:52]} 6. c4 {[%clk 0:02:53]}  Qh5 {[%clk 0:02:50]} 7. Be3 {[%clk 0:02:51]}  Nh6 {[%clk 0:02:50]} 8. Nbd2 {[%clk 0:02:43]}  Nf5 {[%clk 0:02:50]} 9. d5 {[%clk 0:02:44]}  Nxe3 {[%clk 0:02:48]} 10. fxe3 {[%clk 0:02:44]}  Ne5 {[%clk 0:02:48]} 11. O-O {[%clk 0:02:27]}  e6 {[%clk 0:02:44]} 12. Nxe5 {[%clk 0:02:04]}  Bxe2 {[%clk 0:02:42]} 13. g4 {[%clk 0:01:40]}  Bxd1 {[%clk 0:02:18]} 14. gxh5 {[%clk 0:01:41]}  Bxh5 {[%clk 0:02:18]} 15. Nxf7 {[%clk 0:01:24]}  Bxf7 {[%clk 0:02:18]} 16. Rxf7 {[%clk 0:01:22]}  exd5 {[%clk 0:02:18]} 17. cxd5 {[%clk 0:01:15]}  Rxd5 {[%clk 0:02:18]} 18. Ne4 {[%clk 0:00:58]}  Re5 {[%clk 0:01:57]} 19. Raf1 {[%clk 0:00:39]}  Rxe4 {[%clk 0:01:54]} 20. Rxf8+ {[%clk 0:00:39]}  Rxf8 {[%clk 0:01:53]} 21. Rxf8+ {[%clk 0:00:38]}  Kd7 {[%clk 0:01:53]} 22. Rf7+ {[%clk 0:00:39]}  Re7 {[%clk 0:01:53]} 23. Rf3 {[%clk 0:00:35]}  Ke6 {[%clk 0:01:52]} 24. Rh3 {[%clk 0:00:32]}  h6 {[%clk 0:01:50]} 25. Kf2 {[%clk 0:00:33]}  c5 {[%clk 0:01:50]} 26. Rh5 {[%clk 0:00:30]}  b6 {[%clk 0:01:42]} 27. a3 {[%clk 0:00:22]}  Rd7 {[%clk 0:01:37]} 28. Ke2 {[%clk 0:00:21]}  Rd5 {[%clk 0:01:37]} 29. Rh4 {[%clk 0:00:22]}  Rg5 {[%clk 0:01:34]} 30. Re4+ {[%clk 0:00:20]}  Kd6 {[%clk 0:01:33]} 31. Kf3 {[%clk 0:00:19]}  Rf5+ {[%clk 0:01:30]} 32. Kg2 {[%clk 0:00:19]}  Re5 {[%clk 0:01:30]} 33. Rg4 {[%clk 0:00:18]}  Rxe3 {[%clk 0:01:22]} 34. Rxg7 {[%clk 0:00:18]}  Re2+ {[%clk 0:01:23]} 35. Kf3 {[%clk 0:00:18]}  Rxh2 {[%clk 0:01:21]} 36. Rxa7 {[%clk 0:00:18]}  Rxb2 {[%clk 0:01:20]} 37. Rh7 {[%clk 0:00:13]}  Rb3+ {[%clk 0:01:20]} 38. Ke4 {[%clk 0:00:13]}  Rxa3 {[%clk 0:01:20]} 39. Rxh6+ {[%clk 0:00:14]}  Kc7 {[%clk 0:01:20]} 40. Kd5 {[%clk 0:00:14]}  Rd3+ {[%clk 0:01:20]} 41. Kc4 {[%clk 0:00:15]}  Rd4+ {[%clk 0:01:21]} 42. Kb5 {[%clk 0:00:15]}  Rb4+ {[%clk 0:01:21]} 43. Ka6 {[%clk 0:00:16]}  c4 {[%clk 0:01:19]} 44. Rh4 {[%clk 0:00:14]}  Kc6 {[%clk 0:01:18]} 45. Rh6+ {[%clk 0:00:14]}  Kc5 {[%clk 0:01:17]} 46. Rh5+ {[%clk 0:00:14]}  Kd4 {[%clk 0:01:17]} 47. Rh4+ {[%clk 0:00:13]}  Kd3 {[%clk 0:01:18]} 48. Rh3+ {[%clk 0:00:13]}  Kc2 {[%clk 0:01:18]} 49. Rh2+ {[%clk 0:00:07]}  Kb3 {[%clk 0:01:18]} 50. Rh3+ {[%clk 0:00:08]}  c3 {[%clk 0:01:18]} 51. Rg3 {[%clk 0:00:02]}  Kb2 {[%clk 0:01:18]} 0-1


[Site "https://www.chess.com"]

[Event "Titled Tuesday Blitz October 18 Late 2022"]
[White "Koziorowicz, Michal"]
[Black "Girsh, Daniel"]
[WhiteFideId "21809194"]
[BlackFideId "30949190"]
[WhiteElo "2220"]
[BlackElo "2075"]
[Result "1-0"]
[Round "08"]
[TimeControl "180+1"]
[Date "2022.10.18"]
[WhiteClock "0:01:23"]
[BlackClock "0:00:06"]

1. e4 {[%clk 0:03:00]}  c5 {[%clk 0:02:59]} 2. Nf3 {[%clk 0:03:00]}  d6 {[%clk 0:03:00]} 3. Bb5+ {[%clk 0:03:01]}  Nd7 {[%clk 0:02:58]} 4. d4 {[%clk 0:03:01]}  Nf6 {[%clk 0:02:58]} 5. Nc3 {[%clk 0:03:00]}  cxd4 {[%clk 0:02:58]} 6. Qxd4 {[%clk 0:03:01]}  a6 {[%clk 0:02:57]} 7. Bxd7+ {[%clk 0:03:01]}  Bxd7 {[%clk 0:02:58]} 8. Bg5 {[%clk 0:03:02]}  h6 {[%clk 0:02:54]} 9. Bxf6 {[%clk 0:03:02]}  gxf6 {[%clk 0:02:55]} 10. O-O-O {[%clk 0:02:54]}  b5 {[%clk 0:02:48]} 11. Nd5 {[%clk 0:02:51]}  Rc8 {[%clk 0:02:39]} 12. e5 {[%clk 0:02:43]}  Rc4 {[%clk 0:02:26]} 13. Qe3 {[%clk 0:02:09]}  h5 {[%clk 0:02:19]} 14. exf6 {[%clk 0:02:00]}  Bh6 {[%clk 0:02:19]} 15. Ng5 {[%clk 0:02:01]}  e6 {[%clk 0:01:50]} 16. f4 {[%clk 0:01:59]}  Kf8 {[%clk 0:01:17]} 17. Ne7 {[%clk 0:01:55]}  Qc7 {[%clk 0:01:14]} 18. Rd2 {[%clk 0:01:54]}  d5 {[%clk 0:00:28]} 19. Nxd5 {[%clk 0:01:45]}  Qb7 {[%clk 0:00:17]} 20. Kb1 {[%clk 0:01:37]}  Bc6 {[%clk 0:00:15]} 21. Ne7 {[%clk 0:01:30]}  Be8 {[%clk 0:00:13]} 22. Rd8 {[%clk 0:01:28]}  Qc7 {[%clk 0:00:12]} 23. Ng6+ {[%clk 0:01:26]}  fxg6 {[%clk 0:00:11]} 24. Nxe6+ {[%clk 0:01:26]}  Kf7 {[%clk 0:00:09]} 25. Nxc7 {[%clk 0:01:26]}  Rxc7 {[%clk 0:00:07]} 26. Re1 {[%clk 0:01:25]}  Kxf6 {[%clk 0:00:05]} 27. Qe5+ {[%clk 0:01:23]}  Kf7 {[%clk 0:00:05]} 28. Qxh8 {[%clk 0:01:24]}  Bg7 {[%clk 0:00:05]} 29. Qxe8+ {[%clk 0:01:23]}  Kf6 {[%clk 0:00:06]} 30. Qe6# {[%clk 0:01:23]} 1-0


[Site "https://www.chess.com"]

[Event "Titled Tuesday Blitz October 18 Late 2022"]
[White "Madaminov, Mukhiddin"]
[Black "Rustemov, Alexander"]
[WhiteFideId "14210703"]
[BlackFideId "4119002"]
[WhiteElo "2341"]
[BlackElo "2759"]
[Result "1-0"]
[Round "08"]
[TimeControl "180+1"]
[Date "2022.10.18"]
[WhiteClock "0:00:12"]
[BlackClock "0:00:07"]

1. d4 {[%clk 0:03:00]}  d5 {[%clk 0:02:59]} 2. Nc3 {[%clk 0:03:01]}  Nf6 {[%clk 0:02:58]} 3. Bf4 {[%clk 0:03:01]}  a6 {[%clk 0:02:57]} 4. e3 {[%clk 0:03:02]}  b5 {[%clk 0:02:57]} 5. Nf3 {[%clk 0:03:01]}  Bb7 {[%clk 0:02:56]} 6. Bd3 {[%clk 0:03:00]}  e6 {[%clk 0:02:55]} 7. Ne2 {[%clk 0:03:00]}  Nbd7 {[%clk 0:02:54]} 8. Ng3 {[%clk 0:02:58]}  c5 {[%clk 0:02:53]} 9. c3 {[%clk 0:02:58]}  Qb6 {[%clk 0:02:47]} 10. O-O {[%clk 0:02:53]}  Bd6 {[%clk 0:02:47]} 11. Ne5 {[%clk 0:02:53]}  Qc7 {[%clk 0:02:43]} 12. Nxd7 {[%clk 0:02:50]}  Nxd7 {[%clk 0:02:42]} 13. Qg4 {[%clk 0:02:45]}  O-O {[%clk 0:02:37]} 14. Nh5 {[%clk 0:02:35]}  g6 {[%clk 0:02:35]} 15. Qg5 {[%clk 0:02:35]}  Bxf4 {[%clk 0:02:26]} 16. exf4 {[%clk 0:02:30]}  f6 {[%clk 0:02:09]} 17. Qg4 {[%clk 0:02:16]}  Kf7 {[%clk 0:02:02]} 18. Ng3 {[%clk 0:02:09]}  f5 {[%clk 0:01:50]} 19. Qf3 {[%clk 0:01:55]}  cxd4 {[%clk 0:01:46]} 20. cxd4 {[%clk 0:01:55]}  Rac8 {[%clk 0:01:46]} 21. Rfe1 {[%clk 0:01:54]}  Nf6 {[%clk 0:01:45]} 22. Qe3 {[%clk 0:01:45]}  Qd6 {[%clk 0:01:41]} 23. f3 {[%clk 0:01:42]}  Rc7 {[%clk 0:01:34]} 24. Rac1 {[%clk 0:01:35]}  Rfc8 {[%clk 0:01:34]} 25. Rxc7+ {[%clk 0:01:35]}  Rxc7 {[%clk 0:01:35]} 26. Rc1 {[%clk 0:01:35]}  Rxc1+ {[%clk 0:01:29]} 27. Qxc1 {[%clk 0:01:36]}  b4 {[%clk 0:01:26]} 28. Ne2 {[%clk 0:01:33]}  a5 {[%clk 0:01:25]} 29. Kf2 {[%clk 0:01:21]}  Ba6 {[%clk 0:01:25]} 30. Bxa6 {[%clk 0:01:20]}  Qxa6 {[%clk 0:01:26]} 31. Qc7+ {[%clk 0:01:21]}  Kf8 {[%clk 0:01:21]} 32. b3 {[%clk 0:01:19]}  Qb5 {[%clk 0:01:13]} 33. Ke3 {[%clk 0:01:10]}  Nd7 {[%clk 0:01:13]} 34. Nc1 {[%clk 0:00:56]}  Ke7 {[%clk 0:01:12]} 35. Nd3 {[%clk 0:00:49]}  Qb6 {[%clk 0:01:12]} 36. Qc8 {[%clk 0:00:46]}  Qb8 {[%clk 0:01:06]} 37. Qc6 {[%clk 0:00:36]}  Qb6 {[%clk 0:01:03]} 38. Qc1 {[%clk 0:00:29]}  Kd8 {[%clk 0:01:00]} 39. Qe1 {[%clk 0:00:29]}  Qc7 {[%clk 0:00:59]} 40. Qh4+ {[%clk 0:00:28]}  Kc8 {[%clk 0:00:55]} 41. Qxh7 {[%clk 0:00:27]}  Qc2 {[%clk 0:00:55]} 42. Qxg6 {[%clk 0:00:27]}  Qxa2 {[%clk 0:00:54]} 43. Qxe6 {[%clk 0:00:25]}  Qxb3 {[%clk 0:00:54]} 44. Qa6+ {[%clk 0:00:24]}  Kd8 {[%clk 0:00:37]} 45. Qxa5+ {[%clk 0:00:24]}  Ke8 {[%clk 0:00:37]} 46. Qxb4 {[%clk 0:00:24]}  Qc2 {[%clk 0:00:38]} 47. Qd2 {[%clk 0:00:24]}  Qb1 {[%clk 0:00:36]} 48. Qe1 {[%clk 0:00:22]}  Qc2 {[%clk 0:00:32]} 49. Qe2 {[%clk 0:00:22]}  Qc3 {[%clk 0:00:30]} 50. Kf2+ {[%clk 0:00:22]}  Kf8 {[%clk 0:00:28]} 51. Qe3 {[%clk 0:00:23]}  Nb6 {[%clk 0:00:24]} 52. Ne5 {[%clk 0:00:20]}  Qb2+ {[%clk 0:00:23]} 53. Kg3 {[%clk 0:00:19]}  Nc4 {[%clk 0:00:24]} 54. Qd3 {[%clk 0:00:11]}  Qc1 {[%clk 0:00:21]} 55. Qxf5+ {[%clk 0:00:11]}  Kg7 {[%clk 0:00:07]} 56. Qf7+ {[%clk 0:00:12]} 1-0


[Site "https://www.chess.com"]

[Event "Titled Tuesday Blitz October 18 Late 2022"]
[White "Marcolino, Daniel Mattos"]
[Black "Gonzalez Vega, Alejandro"]
[WhiteFideId "2106841"]
[BlackFideId "3510042"]
[WhiteElo "2065"]
[BlackElo "2257"]
[Result "0-1"]
[Round "08"]
[TimeControl "180+1"]
[Date "2022.10.19"]
[WhiteClock "0:00:11"]
[BlackClock "0:00:13"]

1. d4 {[%clk 0:03:00]}  d5 {[%clk 0:02:57]} 2. Nf3 {[%clk 0:03:01]}  Nf6 {[%clk 0:02:57]} 3. g3 {[%clk 0:03:01]}  Bf5 {[%clk 0:02:56]} 4. Bg2 {[%clk 0:03:02]}  e6 {[%clk 0:02:56]} 5. c4 {[%clk 0:03:01]}  c6 {[%clk 0:02:56]} 6. Nc3 {[%clk 0:03:01]}  Nbd7 {[%clk 0:02:55]} 7. Qb3 {[%clk 0:03:02]}  Qb6 {[%clk 0:02:55]} 8. c5 {[%clk 0:03:02]}  Qxb3 {[%clk 0:02:51]} 9. axb3 {[%clk 0:03:03]}  a6 {[%clk 0:02:51]} 10. b4 {[%clk 0:03:03]}  Rc8 {[%clk 0:02:51]} 11. Nh4 {[%clk 0:03:00]}  Bg6 {[%clk 0:02:37]} 12. Nxg6 {[%clk 0:02:50]}  hxg6 {[%clk 0:02:38]} 13. O-O {[%clk 0:02:49]}  e5 {[%clk 0:02:38]} 14. e3 {[%clk 0:02:38]}  Be7 {[%clk 0:02:31]} 15. Re1 {[%clk 0:02:38]}  O-O {[%clk 0:02:23]} 16. Bd2 {[%clk 0:02:38]}  Rfe8 {[%clk 0:02:23]} 17. Rad1 {[%clk 0:02:23]}  Bd8 {[%clk 0:02:22]} 18. Bc1 {[%clk 0:02:21]}  Bc7 {[%clk 0:02:22]} 19. Ne2 {[%clk 0:02:13]}  Re7 {[%clk 0:02:19]} 20. dxe5 {[%clk 0:02:03]}  Nxe5 {[%clk 0:02:18]} 21. Nd4 {[%clk 0:02:03]}  Rce8 {[%clk 0:02:13]} 22. Kf1 {[%clk 0:01:59]}  g5 {[%clk 0:01:25]} 23. h3 {[%clk 0:01:46]}  g6 {[%clk 0:01:25]} 24. b3 {[%clk 0:01:45]}  Nfd7 {[%clk 0:01:14]} 25. Bb2 {[%clk 0:01:43]}  f5 {[%clk 0:01:14]} 26. Nf3 {[%clk 0:01:31]}  Nxf3 {[%clk 0:01:12]} 27. Bxf3 {[%clk 0:01:31]}  Be5 {[%clk 0:01:11]} 28. Bxe5 {[%clk 0:01:22]}  Nxe5 {[%clk 0:01:12]} 29. Bg2 {[%clk 0:01:08]}  g4 {[%clk 0:01:09]} 30. h4 {[%clk 0:01:06]}  Kf7 {[%clk 0:01:06]} 31. Rd4 {[%clk 0:01:05]}  Kf6 {[%clk 0:01:06]} 32. Red1 {[%clk 0:01:06]}  Nd7 {[%clk 0:01:01]} 33. Rf4 {[%clk 0:00:58]}  Nf8 {[%clk 0:00:56]} 34. Rfd4 {[%clk 0:00:53]}  Ne6 {[%clk 0:00:55]} 35. R4d3 {[%clk 0:00:53]}  g5 {[%clk 0:00:50]} 36. hxg5+ {[%clk 0:00:52]}  Nxg5 {[%clk 0:00:49]} 37. Rd4 {[%clk 0:00:47]}  Ne6 {[%clk 0:00:40]} 38. R4d3 {[%clk 0:00:46]}  Rd7 {[%clk 0:00:37]} 39. Ke2 {[%clk 0:00:38]}  Ke5 {[%clk 0:00:34]} 40. Rh1 {[%clk 0:00:37]}  d4 {[%clk 0:00:29]} 41. exd4+ {[%clk 0:00:17]}  Nxd4+ {[%clk 0:00:28]} 42. Kd2 {[%clk 0:00:14]}  Nxb3+ {[%clk 0:00:26]} 43. Kc3 {[%clk 0:00:13]}  Rxd3+ {[%clk 0:00:25]} 44. Kxd3 {[%clk 0:00:13]}  Rd8+ {[%clk 0:00:24]} 45. Kc3 {[%clk 0:00:14]}  Nd4 {[%clk 0:00:22]} 46. Rh7 {[%clk 0:00:13]}  Ne6 {[%clk 0:00:17]} 47. Rxb7 {[%clk 0:00:12]}  Nd4 {[%clk 0:00:14]} 48. Re7+ {[%clk 0:00:11]}  Kf6 {[%clk 0:00:13]} 49. Rc7 {[%clk 0:00:11]}  Nb5+ {[%clk 0:00:13]} 0-1


[Site "https://www.chess.com"]

[Event "Titled Tuesday Blitz October 18 Late 2022"]
[White "Melikyan, Gnel"]
[Black "Vujic, Mihailo"]
[WhiteFideId "54109990"]
[BlackFideId "918873"]
[WhiteElo "2138"]
[BlackElo "2256"]
[Result "1-0"]
[Round "08"]
[TimeControl "180+1"]
[Date "2022.10.19"]
[WhiteClock "0:02:19"]
[BlackClock "0:01:07"]

1. d4 {[%clk 0:02:55]}  d5 {[%clk 0:02:59]} 2. c4 {[%clk 0:02:55]}  e5 {[%clk 0:02:59]} 3. dxe5 {[%clk 0:02:55]}  d4 {[%clk 0:03:00]} 4. Nf3 {[%clk 0:02:55]}  Nc6 {[%clk 0:02:59]} 5. g3 {[%clk 0:02:55]}  Nge7 {[%clk 0:02:59]} 6. Bg2 {[%clk 0:02:56]}  Ng6 {[%clk 0:02:59]} 7. O-O {[%clk 0:02:56]}  Ngxe5 {[%clk 0:02:59]} 8. Nxe5 {[%clk 0:02:56]}  Nxe5 {[%clk 0:03:00]} 9. e3 {[%clk 0:02:56]}  d3 {[%clk 0:02:54]} 10. b3 {[%clk 0:02:56]}  Bg4 {[%clk 0:02:50]} 11. f3 {[%clk 0:02:55]}  Be6 {[%clk 0:02:46]} 12. Bb2 {[%clk 0:02:54]}  f6 {[%clk 0:02:46]} 13. Nc3 {[%clk 0:02:51]}  Bc5 {[%clk 0:02:45]} 14. Qd2 {[%clk 0:02:50]}  Bxc4 {[%clk 0:02:29]} 15. Na4 {[%clk 0:02:50]}  Qe7 {[%clk 0:01:45]} 16. Nxc5 {[%clk 0:02:47]}  Qxc5 {[%clk 0:01:44]} 17. Bd4 {[%clk 0:02:47]}  Qd6 {[%clk 0:01:37]} 18. bxc4 {[%clk 0:02:43]}  Nxc4 {[%clk 0:01:34]} 19. Qxd3 {[%clk 0:02:43]}  Nb6 {[%clk 0:01:27]} 20. Qb3 {[%clk 0:02:36]}  O-O-O {[%clk 0:01:25]} 21. a4 {[%clk 0:02:34]}  h5 {[%clk 0:01:22]} 22. a5 {[%clk 0:02:34]}  Nd5 {[%clk 0:01:21]} 23. f4 {[%clk 0:02:34]}  h4 {[%clk 0:01:20]} 24. Rac1 {[%clk 0:02:29]}  hxg3 {[%clk 0:01:18]} 25. hxg3 {[%clk 0:02:29]}  c6 {[%clk 0:01:14]} 26. a6 {[%clk 0:02:24]}  Kb8 {[%clk 0:01:07]} 27. Qxb7# {[%clk 0:02:19]} 1-0


[Site "https://www.chess.com"]

[Event "Titled Tuesday Blitz October 18 Late 2022"]
[White "Moaataz, Ayah"]
[Black "Kowalysko, Roman"]
[WhiteFideId "10615873"]
[BlackFideId "30918510"]
[WhiteElo "1993"]
[BlackElo "2135"]
[Result "0-1"]
[Round "08"]
[TimeControl "180+1"]
[Date "2022.10.19"]
[WhiteClock "0:01:00"]
[BlackClock "0:01:29"]

1. c4 {[%clk 0:03:00]}  Nf6 {[%clk 0:02:43]} 2. g3 {[%clk 0:03:01]}  Nd5 {[%clk 0:02:34]} 3. Bg2 {[%clk 0:03:02]}  Nf6 {[%clk 0:02:33]} 4. Nf3 {[%clk 0:03:02]}  g6 {[%clk 0:02:32]} 5. O-O {[%clk 0:03:02]}  Bg7 {[%clk 0:02:33]} 6. d4 {[%clk 0:03:03]}  O-O {[%clk 0:02:32]} 7. Nc3 {[%clk 0:03:03]}  d6 {[%clk 0:02:32]} 8. e4 {[%clk 0:03:04]}  Nbd7 {[%clk 0:02:33]} 9. h3 {[%clk 0:03:03]}  e5 {[%clk 0:02:33]} 10. d5 {[%clk 0:03:03]}  Nc5 {[%clk 0:02:30]} 11. Ne1 {[%clk 0:03:02]}  a5 {[%clk 0:02:30]} 12. a3 {[%clk 0:03:02]}  a4 {[%clk 0:02:24]} 13. Be3 {[%clk 0:03:01]}  Nh5 {[%clk 0:02:19]} 14. Bxc5 {[%clk 0:03:00]}  dxc5 {[%clk 0:02:19]} 15. Nxa4 {[%clk 0:03:00]}  f5 {[%clk 0:02:18]} 16. Nxc5 {[%clk 0:02:59]}  fxe4 {[%clk 0:02:14]} 17. Nxe4 {[%clk 0:02:57]}  Bf5 {[%clk 0:02:02]} 18. Nc5 {[%clk 0:02:49]}  b6 {[%clk 0:01:59]} 19. Nb7 {[%clk 0:02:45]}  Qc8 {[%clk 0:01:58]} 20. d6 {[%clk 0:02:45]}  Bxh3 {[%clk 0:01:56]} 21. Bxh3 {[%clk 0:02:30]}  Qxh3 {[%clk 0:01:53]} 22. Ng2 {[%clk 0:02:10]}  Nf6 {[%clk 0:01:43]} 23. Ne3 {[%clk 0:02:02]}  Bh6 {[%clk 0:01:44]} 24. Qd3 {[%clk 0:01:26]}  Bxe3 {[%clk 0:01:35]} 25. Qxe3 {[%clk 0:01:23]}  Ng4 {[%clk 0:01:35]} 26. Qh6 {[%clk 0:01:00]}  Qxh6 {[%clk 0:01:29]} 0-1


[Site "https://www.chess.com"]

[Event "Titled Tuesday Blitz October 18 Late 2022"]
[White "Noboa Silva, Kevin"]
[Black "Martin Carmona, Gaston Manuel"]
[WhiteFideId "3618471"]
[BlackFideId "22284567"]
[WhiteElo "2178"]
[BlackElo "2235"]
[Result "1-0"]
[Round "08"]
[TimeControl "180+1"]
[Date "2022.10.19"]
[WhiteClock "0:00:24"]
[BlackClock "0:00:11"]

1. d4 {[%clk 0:03:00]}  Nf6 {[%clk 0:02:58]} 2. c4 {[%clk 0:03:00]}  g6 {[%clk 0:02:59]} 3. Nc3 {[%clk 0:03:00]}  Bg7 {[%clk 0:02:59]} 4. e4 {[%clk 0:03:00]}  d6 {[%clk 0:03:00]} 5. h3 {[%clk 0:03:00]}  O-O {[%clk 0:03:01]} 6. Bg5 {[%clk 0:02:59]}  Nbd7 {[%clk 0:02:59]} 7. Bd3 {[%clk 0:02:58]}  e5 {[%clk 0:02:59]} 8. d5 {[%clk 0:02:57]}  Nc5 {[%clk 0:02:59]} 9. Bc2 {[%clk 0:02:57]}  a5 {[%clk 0:03:00]} 10. Nge2 {[%clk 0:02:56]}  h6 {[%clk 0:03:00]} 11. Be3 {[%clk 0:02:55]}  Nfd7 {[%clk 0:02:58]} 12. Qd2 {[%clk 0:02:55]}  Kh7 {[%clk 0:02:58]} 13. g4 {[%clk 0:02:55]}  Qh4 {[%clk 0:02:39]} 14. Ng3 {[%clk 0:02:49]}  b6 {[%clk 0:02:31]} 15. O-O-O {[%clk 0:02:43]}  Ba6 {[%clk 0:02:30]} 16. Qe2 {[%clk 0:02:42]}  Rab8 {[%clk 0:02:23]} 17. Kb1 {[%clk 0:02:30]}  Bf6 {[%clk 0:02:20]} 18. Rhg1 {[%clk 0:02:15]}  Bg5 {[%clk 0:02:19]} 19. Bxg5 {[%clk 0:01:59]}  hxg5 {[%clk 0:02:14]} 20. Nf1 {[%clk 0:01:56]}  Kg7 {[%clk 0:02:13]} 21. Rg3 {[%clk 0:01:49]}  f6 {[%clk 0:02:03]} 22. Nd2 {[%clk 0:01:47]}  Qh7 {[%clk 0:01:55]} 23. Nf3 {[%clk 0:01:40]}  Rh8 {[%clk 0:01:55]} 24. Rh1 {[%clk 0:01:39]}  Kf7 {[%clk 0:01:33]} 25. b3 {[%clk 0:01:34]}  Qg7 {[%clk 0:01:30]} 26. Kb2 {[%clk 0:01:32]}  Rh6 {[%clk 0:01:19]} 27. h4 {[%clk 0:01:22]}  gxh4 {[%clk 0:01:19]} 28. Rxh4 {[%clk 0:01:22]}  Rxh4 {[%clk 0:01:17]} 29. Nxh4 {[%clk 0:01:23]}  Rh8 {[%clk 0:01:08]} 30. Ng2 {[%clk 0:01:16]}  Rh1 {[%clk 0:00:49]} 31. Ne3 {[%clk 0:01:11]}  Qh6 {[%clk 0:00:44]} 32. a3 {[%clk 0:01:10]}  a4 {[%clk 0:00:30]} 33. b4 {[%clk 0:01:05]}  Nb3 {[%clk 0:00:30]} 34. Bxb3 {[%clk 0:00:58]}  axb3 {[%clk 0:00:31]} 35. Kxb3 {[%clk 0:00:57]}  Qh4 {[%clk 0:00:31]} 36. Qf3 {[%clk 0:00:50]}  Rh2 {[%clk 0:00:22]} 37. Rg2 {[%clk 0:00:39]}  Rh3 {[%clk 0:00:20]} 38. Rg3 {[%clk 0:00:38]}  Rxg3 {[%clk 0:00:20]} 39. Qxg3 {[%clk 0:00:38]}  Qh1 {[%clk 0:00:18]} 40. g5 {[%clk 0:00:35]}  Qe1 {[%clk 0:00:16]} 41. Qh3 {[%clk 0:00:30]}  Ke7 {[%clk 0:00:15]} 42. gxf6+ {[%clk 0:00:27]}  Kd8 {[%clk 0:00:11]} 43. Qh8+ {[%clk 0:00:24]} 1-0


[Site "https://www.chess.com"]

[Event "Titled Tuesday Blitz October 18 Late 2022"]
[White "Osmak, Yuliia"]
[Black "Hajiyev, Kanan"]
[WhiteFideId "14101602"]
[BlackFideId "13404148"]
[WhiteElo "2619"]
[BlackElo "2489"]
[Result "1-0"]
[Round "08"]
[TimeControl "180+1"]
[Date "2022.10.19"]
[WhiteClock "0:00:06"]
[BlackClock "0:00:10"]

1. d4 {[%clk 0:03:00]}  d5 {[%clk 0:02:57]} 2. c4 {[%clk 0:03:01]}  c6 {[%clk 0:02:57]} 3. Nf3 {[%clk 0:02:59]}  Nf6 {[%clk 0:02:57]} 4. Nc3 {[%clk 0:02:59]}  g6 {[%clk 0:02:55]} 5. e3 {[%clk 0:02:56]}  Bg7 {[%clk 0:02:51]} 6. Be2 {[%clk 0:02:56]}  O-O {[%clk 0:02:51]} 7. O-O {[%clk 0:02:56]}  Bg4 {[%clk 0:02:50]} 8. b3 {[%clk 0:02:49]}  Ne4 {[%clk 0:02:46]} 9. Bb2 {[%clk 0:02:48]}  Nxc3 {[%clk 0:02:44]} 10. Bxc3 {[%clk 0:02:49]}  Nd7 {[%clk 0:02:42]} 11. cxd5 {[%clk 0:02:46]}  cxd5 {[%clk 0:02:42]} 12. Rc1 {[%clk 0:02:45]}  Rc8 {[%clk 0:02:42]} 13. h3 {[%clk 0:02:38]}  Bxf3 {[%clk 0:02:39]} 14. Bxf3 {[%clk 0:02:39]}  e6 {[%clk 0:02:40]} 15. Qd2 {[%clk 0:02:31]}  Re8 {[%clk 0:02:29]} 16. Bb2 {[%clk 0:02:25]}  Qb6 {[%clk 0:02:20]} 17. Be2 {[%clk 0:02:23]}  Bf8 {[%clk 0:02:15]} 18. Qd3 {[%clk 0:02:20]}  a6 {[%clk 0:02:12]} 19. Rc3 {[%clk 0:02:14]}  Bb4 {[%clk 0:02:08]} 20. Rc2 {[%clk 0:02:13]}  Rc6 {[%clk 0:02:03]} 21. Rxc6 {[%clk 0:02:09]}  Qxc6 {[%clk 0:02:04]} 22. Rc1 {[%clk 0:02:09]}  Qd6 {[%clk 0:02:04]} 23. Qc2 {[%clk 0:02:06]}  Nb6 {[%clk 0:01:47]} 24. Qc7 {[%clk 0:02:05]}  Qxc7 {[%clk 0:01:46]} 25. Rxc7 {[%clk 0:02:03]}  Rb8 {[%clk 0:01:47]} 26. Kf1 {[%clk 0:01:45]}  Bd6 {[%clk 0:01:47]} 27. Rc2 {[%clk 0:01:43]}  Kf8 {[%clk 0:01:47]} 28. Bd3 {[%clk 0:01:41]}  h5 {[%clk 0:01:47]} 29. Ke2 {[%clk 0:01:39]}  Ke7 {[%clk 0:01:47]} 30. g4 {[%clk 0:01:35]}  hxg4 {[%clk 0:01:47]} 31. hxg4 {[%clk 0:01:36]}  Rh8 {[%clk 0:01:46]} 32. a4 {[%clk 0:01:27]}  Rc8 {[%clk 0:01:27]} 33. Rxc8 {[%clk 0:01:21]}  Nxc8 {[%clk 0:01:28]} 34. Bc3 {[%clk 0:01:18]}  Kd7 {[%clk 0:01:26]} 35. f4 {[%clk 0:01:16]}  Kc6 {[%clk 0:01:21]} 36. Kf3 {[%clk 0:01:14]}  Be7 {[%clk 0:01:17]} 37. e4 {[%clk 0:01:11]}  Nb6 {[%clk 0:01:12]} 38. e5 {[%clk 0:01:06]}  Bh4 {[%clk 0:01:10]} 39. f5 {[%clk 0:01:01]}  gxf5 {[%clk 0:01:09]} 40. gxf5 {[%clk 0:01:02]}  exf5 {[%clk 0:00:53]} 41. Bxf5 {[%clk 0:01:01]}  Nd7 {[%clk 0:00:53]} 42. Bg4 {[%clk 0:00:50]}  Nf8 {[%clk 0:00:47]} 43. Bh5 {[%clk 0:00:47]}  Ng6 {[%clk 0:00:43]} 44. e6 {[%clk 0:00:45]}  Be7 {[%clk 0:00:25]} 45. exf7 {[%clk 0:00:43]}  Nf8 {[%clk 0:00:18]} 46. Kg4 {[%clk 0:00:43]}  b6 {[%clk 0:00:18]} 47. Kf5 {[%clk 0:00:42]}  a5 {[%clk 0:00:18]} 48. Bd2 {[%clk 0:00:39]}  Kd6 {[%clk 0:00:17]} 49. Bf4+ {[%clk 0:00:38]}  Kd7 {[%clk 0:00:18]} 50. Bf3 {[%clk 0:00:37]}  Kc6 {[%clk 0:00:18]} 51. Be2 {[%clk 0:00:31]}  Kd7 {[%clk 0:00:08]} 52. Bb5+ {[%clk 0:00:29]}  Kd8 {[%clk 0:00:08]} 53. Bc6 {[%clk 0:00:28]}  Bh4 {[%clk 0:00:05]} 54. Bxd5 {[%clk 0:00:24]}  Ke7 {[%clk 0:00:05]} 55. Bc7 {[%clk 0:00:20]}  Bf2 {[%clk 0:00:04]} 56. Bxb6 {[%clk 0:00:19]}  Nd7 {[%clk 0:00:05]} 57. Bxa5 {[%clk 0:00:17]}  Bxd4 {[%clk 0:00:05]} 58. Bb4+ {[%clk 0:00:17]}  Kd8 {[%clk 0:00:02]} 59. f8=Q+ {[%clk 0:00:15]}  Nxf8 {[%clk 0:00:03]} 60. Bxf8 {[%clk 0:00:15]}  Kc7 {[%clk 0:00:04]} 61. Ke4 {[%clk 0:00:14]}  Bc3 {[%clk 0:00:05]} 62. Kd3 {[%clk 0:00:14]}  Be1 {[%clk 0:00:05]} 63. Kc4 {[%clk 0:00:14]}  Kb6 {[%clk 0:00:05]} 64. b4 {[%clk 0:00:13]}  Ka6 {[%clk 0:00:05]} 65. Bc5 {[%clk 0:00:09]}  Bg3 {[%clk 0:00:04]} 66. a5 {[%clk 0:00:07]}  Bc7 {[%clk 0:00:03]} 67. Bb6 {[%clk 0:00:06]}  Bxb6 {[%clk 0:00:04]} 68. axb6 {[%clk 0:00:07]}  Kxb6 {[%clk 0:00:04]} 69. b5 {[%clk 0:00:07]}  Kc7 {[%clk 0:00:05]} 70. Kc5 {[%clk 0:00:07]}  Kb8 {[%clk 0:00:06]} 71. b6 {[%clk 0:00:06]}  Kc8 {[%clk 0:00:06]} 72. Bb3 {[%clk 0:00:06]}  Kb8 {[%clk 0:00:07]} 73. Kc6 {[%clk 0:00:06]}  Kc8 {[%clk 0:00:08]} 74. b7+ {[%clk 0:00:06]}  Kb8 {[%clk 0:00:08]} 75. Ba2 {[%clk 0:00:06]}  Ka7 {[%clk 0:00:09]} 76. Kc7 {[%clk 0:00:06]}  Ka6 {[%clk 0:00:09]} 77. b8=Q {[%clk 0:00:06]}  Ka5 {[%clk 0:00:10]} 78. Qb3 {[%clk 0:00:05]}  Ka6 {[%clk 0:00:10]} 79. Qb6# {[%clk 0:00:06]} 1-0


[Site "https://www.chess.com"]